fUSD/lending_fUSD_20260527
["ID","MTS","AMOUNT","RATE_DAILY","PERIOD"]
[423077031,1779823831000,-1.74295622,0.0001721,2]
[423077030,1779823831000,-194.49708147,0.0001721,2]
[423077038,1779823831000,-8166.0,0.00019337,2]
[423077037,1779823831000,-300.0,0.00019336,2]
[423077035,1779823831000,-120.46224914,0.0001906,2]
[423077034,1779823831000,-1108.62641723,0.0001906,2]
[423077036,1779823831000,-431.0,0.00019336,2]
[423077033,1779823831000,-359.85704378,0.0001906,2]
[423077032,1779823831000,-938.4,0.0001841,2]
[423077027,1779823831000,-938.4,0.00016438,2]
[423077050,1779823832000,-814.19988441,0.000206,2]
[423077048,1779823832000,-58999.05949839,0.000206,2]
[423077047,1779823832000,-938.4,0.00020381,2]
[423077046,1779823832000,-366.54,0.00020016,2]
[423077045,1779823832000,-161.0,0.0002,2]
[423077044,1779823832000,-152.0,0.0002,2]
[423077040,1779823832000,-202.0,0.0002,2]
[423077042,1779823832000,-167.0,0.0002,2]
[423077041,1779823832000,-232.0,0.0002,2]
[423077043,1779823832000,-280.0,0.0002,2]
[423077039,1779823832000,-168.0,0.0002,2]
[423077049,1779823832000,-3202.54507597,0.000206,2]
[423077057,1779823838000,-16902.80969701,0.000206,2]
[423077056,1779823838000,-489.71213704,0.000206,2]
[423077058,1779823838000,-304.13233855,0.000206,2]
[423077089,1779823840000,-262.7300056,0.000206,2]
[423077088,1779823840000,-500.0,0.000206,2]
[423077087,1779823840000,-3555.7035731,0.000206,2]
[423077086,1779823840000,-612.385,0.000206,2]
[423077085,1779823840000,-543.96360113,0.000206,2]
[423077117,1779823843000,-440.55484747,0.000206,2]
[423077123,1779823843000,-1210.13702178,0.00021,2]
[423077124,1779823843000,-199.72580475,0.00021,2]
[423077125,1779823843000,-168.0,0.00021,2]
[423077120,1779823843000,-1526.467,0.00020993,2]
[423077126,1779823843000,-202.0,0.00021,2]
[423077118,1779823843000,-58450.74364133,0.000206,2]
[423077119,1779823843000,-22983.14027433,0.000207,2]
[423077122,1779823843000,-181.478,0.00020993,2]
[423077121,1779823843000,-162.07,0.00020993,2]
[423077128,1779823843000,-280.0,0.00021,2]
[423077131,1779823843000,-3100.0,0.000219,7]
[423077129,1779823843000,-152.0,0.00021,2]
[423077130,1779823843000,-225.36128218,0.000215,2]
[423077134,1779823843000,-5000.0,0.00021918,2]
[423077136,1779823843000,-291.305073,0.00022,2]
[423077132,1779823843000,-373.728797,0.000219,2]
[423077135,1779823843000,-440.29372487,0.00022,2]
[423077133,1779823843000,-500.0,0.000219,2]
[423077127,1779823843000,-232.0,0.00021,2]
[423077148,1779823844000,-500.0,0.00022098,2]
[423077150,1779823844000,-500.0,0.00022098,2]
[423077147,1779823844000,-12458.1217,0.00022,2]
[423077151,1779823844000,-500.0,0.00022098,2]
[423077138,1779823844000,-160.0,0.00022,2]
[423077140,1779823844000,-168.0,0.00022,2]
[423077139,1779823844000,-300.0,0.00022,2]
[423077137,1779823844000,-285.305073,0.00022,2]
[423077143,1779823844000,-4391.05504934,0.00022,2]
[423077142,1779823844000,-232.0,0.00022,2]
[423077146,1779823844000,-3555.81,0.00022,2]
[423077144,1779823844000,-280.0,0.00022,2]
[423077141,1779823844000,-202.0,0.00022,2]
[423077145,1779823844000,-152.0,0.00022,2]
[423077159,1779823844000,-238.06446189,0.00022098,2]
[423077158,1779823844000,-500.0,0.00022098,2]
[423077155,1779823844000,-500.0,0.00022098,2]
[423077156,1779823844000,-500.0,0.00022098,2]
[423077153,1779823844000,-500.0,0.00022098,2]
[423077152,1779823844000,-500.0,0.00022098,2]
[423077149,1779823844000,-500.0,0.00022098,2]
[423077157,1779823844000,-500.0,0.00022098,2]
[423077154,1779823844000,-500.0,0.00022098,2]
[423077180,1779823846000,-379.92070829,0.00022098,2]
[423077176,1779823846000,-500.0,0.00022098,2]
[423077179,1779823846000,-500.0,0.00022098,2]
[423077178,1779823846000,-500.0,0.00022098,2]
[423077175,1779823846000,-500.0,0.00022098,2]
[423077174,1779823846000,-500.0,0.00022098,2]
[423077177,1779823846000,-500.0,0.00022098,2]
[423077173,1779823846000,-500.0,0.00022098,2]
[423077170,1779823846000,-500.0,0.00022098,2]
[423077169,1779823846000,-500.0,0.00022098,2]
[423077181,1779823846000,-500.0,0.00022098,2]
[423077171,1779823846000,-500.0,0.00022098,2]
[423077168,1779823846000,-500.0,0.00022098,2]
[423077166,1779823846000,-500.0,0.00022098,2]
[423077165,1779823846000,-500.0,0.00022098,2]
[423077163,1779823846000,-500.0,0.00022098,2]
[423077167,1779823846000,-500.0,0.00022098,2]
[423077164,1779823846000,-500.0,0.00022098,2]
[423077162,1779823846000,-261.93553811,0.00022098,2]
[423077183,1779823846000,-500.0,0.00022099,2]
[423077172,1779823846000,-500.0,0.00022098,2]
[423077194,1779823846000,-104770.82928005,0.000221,2]
[423077185,1779823846000,-402.27263845,0.00022099,2]
[423077184,1779823846000,-425.51154202,0.00022099,2]
[423077193,1779823846000,-500.0,0.00022099,2]
[423077206,1779823846000,-10255.29951793,0.000225,2]
[423077202,1779823846000,-500.0,0.00022199,2]
[423077203,1779823846000,-284.04184663,0.00022199,2]
[423077199,1779823846000,-181970.74691362,0.000221,2]
[423077197,1779823846000,-39144.85979316,0.000221,2]
[423077205,1779823846000,-938.4,0.00022353,2]
[423077201,1779823846000,-500.0,0.00022199,2]
[423077198,1779823846000,-38837.27305032,0.000221,2]
[423077200,1779823846000,-243.8947225,0.0002211,2]
[423077204,1779823846000,-229.33446668,0.00022199,2]
[423077195,1779823846000,-11446.15477078,0.000221,2]
[423077192,1779823846000,-418.47156472,0.00022099,2]
[423077189,1779823846000,-500.0,0.00022099,2]
[423077191,1779823846000,-500.0,0.00022099,2]
[423077187,1779823846000,-500.0,0.00022099,2]
[423077182,1779823846000,-1000.0,0.00022099,2]
[423077188,1779823846000,-500.0,0.00022099,2]
[423077190,1779823846000,-500.0,0.00022099,2]
[423077186,1779823846000,-283.29944735,0.00022099,2]
[423077196,1779823846000,-61038.52869207,0.000221,2]
[423077210,1779824084000,-220.0,0.0001841,2]
[423077213,1779824228000,250.0,0.00014,2]
[423077229,1779825032000,-290.00527865,0.0001831,2]
[423077227,1779825032000,-299.39839178,0.0001821,2]
[423077225,1779825032000,-290.00527866,0.000181,2]
[423077223,1779825032000,-356.27458791,0.00017224,2]
[423077221,1779825032000,-686.2,0.00016438,2]
[423077222,1779825032000,-250.0,0.00016831,2]
[423077228,1779825032000,-290.00527868,0.0001831,2]
[423077226,1779825032000,-290.00527865,0.0001821,2]
[423077230,1779825032000,-500.0,0.0001831,2]
[423077224,1779825032000,-250.0,0.00018082,2]
[423077231,1779825032000,-686.2,0.0001841,2]
[423077235,1779825032000,-1200.0,0.00019095,2]
[423077232,1779825032000,-290.00527866,0.00018543,2]
[423077233,1779825032000,-1094.28197129,0.00019004,2]
[423077244,1779825032000,-110.67762474,0.00019405,2]
[423077239,1779825032000,-3220.00395464,0.0001922,2]
[423077240,1779825032000,-767.37145248,0.0001922,2]
[423077237,1779825032000,-290.00527866,0.00019104,2]
[423077243,1779825032000,-299.39839177,0.00019305,2]
[423077238,1779825032000,-290.00527865,0.00019129,2]
[423077241,1779825032000,-1663.62459288,0.0001922,2]
[423077234,1779825032000,-300.0,0.00019095,2]
[423077236,1779825032000,-5541.43486781,0.00019096,2]
[423077242,1779825032000,-1094.28197126,0.00019224,2]
[423077363,1779825038000,-172.0,0.0002,2]
[423077355,1779825038000,-1094.28197126,0.00019445,2]
[423077354,1779825038000,-74.02237526,0.00019405,2]
[423077356,1779825038000,-3946.6956535,0.00019518,2]
[423077358,1779825038000,-1156.46547994,0.00019518,2]
[423077357,1779825038000,-597.83886656,0.00019518,2]
[423077359,1779825038000,-1094.28197126,0.00019665,2]
[423077362,1779825038000,-151.0,0.0002,2]
[423077368,1779825038000,-191.08,0.00020323,2]
[423077361,1779825038000,-152.0,0.0002,2]
[423077364,1779825038000,-198.0,0.0002,2]
[423077365,1779825038000,-238.0,0.0002,2]
[423077366,1779825038000,-158.0,0.0002,2]
[423077370,1779825038000,-4792.48855003,0.000204,2]
[423077367,1779825038000,-2000.0,0.00020237,2]
[423077369,1779825038000,-686.2,0.00020381,2]
[423077360,1779825038000,-191.08,0.00019827,2]
[423077593,1779825040000,-1064.97059469,0.000204,2]
[423077604,1779825040000,-299.39839177,0.000204,2]
[423077602,1779825040000,-864.07367188,0.000204,2]
[423077596,1779825040000,-3685.8786834,0.000204,2]
[423077606,1779825040000,-5146.2264,0.000204,2]
[423077654,1779825040000,-49640.69201468,0.000205,2]
[423077616,1779825040000,-6152.77489824,0.000205,2]
[423077612,1779825040000,-922.59284434,0.000205,2]
[423077609,1779825040000,-1953.75484357,0.000205,2]
[423077614,1779825040000,-1297.25811209,0.000205,2]
[423077657,1779825040000,-26021.31376805,0.000205,2]
[423077608,1779825040000,-1159.40052864,0.00020499,2]
[423077916,1779825043000,-1046.88928713,0.000205,2]
[423077918,1779825043000,-2500.0,0.000205,2]
[423077917,1779825043000,-16342.3576319,0.000205,2]
[423077920,1779825043000,-500.0,0.00020599,2]
[423077924,1779825043000,-456.0,0.000206,2]
[423077919,1779825043000,-330.42,0.00020589,3]
[423077921,1779825043000,-500.0,0.00020599,2]
[423077923,1779825043000,-61004.2203681,0.000206,2]
[423077926,1779825043000,-18261.44449479,0.000206,2]
[423077925,1779825043000,-54.3291243,0.000206,2]
[423077927,1779825043000,-489.45305428,0.000206,2]
[423077922,1779825043000,-500.0,0.00020599,2]
[423077932,1779825046000,-317.90634479,0.000206,2]
[423077933,1779825046000,-33584.23958884,0.000206,2]
[423077931,1779825046000,-6574.56122156,0.000206,2]
[423077935,1779825065000,2000.0,0.00028082,120]
[423077938,1779825536000,167.12,0.00012684,2]
[423077937,1779825536000,167.12,0.0001208,2]
[423077936,1779825536000,167.12,0.00011476,2]
[423077939,1779825537000,167.12,0.00013288,2]
[423077940,1779825537000,167.12,0.00013892,2]
[423077941,1779825537000,167.12,0.00014496,2]
[423077952,1779825816000,235.987458,0.0002528,120]
[423077956,1779826141000,1000.0,0.00028081,120]
[423077976,1779826232000,-166.92,0.0001856,2]
[423077977,1779826232000,-1305.02375397,0.0001862,2]
[423077975,1779826232000,-978.7678155,0.0001846,2]
[423077972,1779826232000,-176.16409663,0.0001831,2]
[423077973,1779826232000,-739.4,0.0001841,2]
[423077971,1779826232000,-708.90326782,0.00018283,2]
[423077978,1779826232000,-300.0,0.00018719,2]
[423077974,1779826232000,-161.83,0.00018411,2]
[423077969,1779826232000,-166.92,0.00018096,2]
[423077968,1779826232000,-200.0,0.00018007,2]
[423077979,1779826232000,-623.11,0.0001872,2]
[423077967,1779826232000,-166.92,0.00017632,2]
[423077965,1779826232000,-167.12,0.00016912,2]
[423077966,1779826232000,-167.12,0.00017516,2]
[423077964,1779826232000,-167.12,0.00016308,2]
[423077963,1779826232000,-167.12,0.00015704,2]
[423077962,1779826232000,-166.9,0.00015191,2]
[423077961,1779826232000,-167.12,0.000151,2]
[423077960,1779826232000,-151.86712148,0.000151,2]
[423077970,1779826232000,-167.12,0.0001812,2]
[423077981,1779826232000,-2000.0,0.00018782,2]
[423077986,1779826232000,-167.12,0.00019328,2]
[423077982,1779826232000,-176.16409662,0.00018938,2]
[423078020,1779826232000,-6194.39674553,0.00019926,2]
[423078021,1779826232000,-496.2484482,0.00019926,2]
[423077980,1779826232000,-167.12,0.00018724,2]
[423078017,1779826232000,-51632.17490644,0.00019926,2]
[423078022,1779826232000,-3805.5,0.00019926,2]
[423078001,1779826232000,-479.0,0.00019926,2]
[423077998,1779826232000,-21871.88374787,0.00019926,2]
[423077995,1779826232000,-978.76781547,0.000199,2]
[423077996,1779826232000,-197.59056636,0.00019916,2]
[423077994,1779826232000,-405.71966649,0.00019832,2]
[423078019,1779826232000,-46051.0838999,0.00019926,2]
[423077991,1779826232000,-176.16409662,0.00019566,2]
[423077990,1779826232000,-215.43,0.00019489,2]
[423077983,1779826232000,-978.76781547,0.0001894,2]
[423077989,1779826232000,-166.92,0.00019488,2]
[423077988,1779826232000,-158.49,0.00019487,2]
[423077987,1779826232000,-167.4,0.00019426,2]
[423077985,1779826232000,-166.92,0.00019024,2]
[423077984,1779826232000,-1018.81,0.00018947,2]
[423077993,1779826232000,-191.08,0.00019602,2]
[423078035,1779826238000,-500.0,0.00019925,2]
[423078037,1779826238000,-500.0,0.00019925,2]
[423078038,1779826238000,-500.0,0.00019925,2]
[423078034,1779826238000,-500.0,0.00019925,2]
[423078036,1779826238000,-500.0,0.00019925,2]
[423078031,1779826238000,-167.37977558,0.00019925,2]
[423078030,1779826238000,-510.83044679,0.00019925,2]
[423078027,1779826238000,-243.97,0.00019925,2]
[423078029,1779826238000,-500.0,0.00019925,2]
[423078028,1779826238000,-500.0,0.00019925,2]
[423078025,1779826238000,-756.97,0.00016474,2]
[423078026,1779826238000,-256.03,0.00019925,2]
[423078033,1779826238000,-500.0,0.00019925,2]
[423078039,1779826238000,-500.0,0.00019925,2]
[423078032,1779826238000,-322.01590857,0.00019925,2]
[423078041,1779826238000,-500.0,0.00019925,2]
[423078053,1779826238000,-500.0,0.00019925,2]
[423078040,1779826238000,-500.0,0.00019925,2]
[423078042,1779826238000,-500.0,0.00019925,2]
[423078072,1779826238000,-500.0,0.00019925,2]
[423078056,1779826238000,-500.0,0.00019925,2]
[423078059,1779826238000,-500.0,0.00019925,2]
[423078062,1779826238000,-500.0,0.00019925,2]
[423078067,1779826238000,-500.0,0.00019925,2]
[423078064,1779826238000,-376.50228373,0.00019925,2]
[423078070,1779826238000,-500.0,0.00019925,2]
[423078047,1779826238000,-500.0,0.00019925,2]
[423078048,1779826238000,-500.0,0.00019925,2]
[423078051,1779826238000,-500.0,0.00019925,2]
[423078046,1779826238000,-500.0,0.00019925,2]
[423078044,1779826238000,-500.0,0.00019925,2]
[423078045,1779826238000,-500.0,0.00019925,2]
[423078043,1779826238000,-466.03157465,0.00019925,2]
[423078148,1779826239000,-306.0,0.0002041,2]
[423078164,1779826239000,-64249.6655163,0.0002048,2]
[423078153,1779826239000,-31763.2431858,0.0002048,2]
[423078146,1779826239000,-739.4,0.00020381,2]
[423078161,1779826239000,-67017.4284808,0.0002048,2]
[423078159,1779826239000,-8336.6547398,0.0002048,2]
[423078155,1779826239000,-386.0502638,0.0002048,2]
[423078168,1779826239000,-191.08,0.00020582,2]
[423078157,1779826239000,-1389.1884403,0.0002048,2]
[423078177,1779826239000,-157.07564746,0.00021,2]
[423078184,1779826239000,-155.0,0.00021,2]
[423078179,1779826239000,-198.0,0.00021,2]
[423078180,1779826239000,-197.0,0.00021,2]
[423078183,1779826239000,-154.0,0.00021,2]
[423078181,1779826239000,-234.0,0.00021,2]
[423078170,1779826239000,-500.0,0.00020599,2]
[423078141,1779826239000,-2434.07361847,0.0002038,2]
[423078175,1779826239000,-1134.25,0.00020599,2]
[423078172,1779826239000,-500.0,0.00020599,2]
[423078182,1779826239000,-296.0,0.00021,2]
[423078186,1779826239000,-167.0,0.00021,2]
[423078189,1779826239000,-167.12,0.0002114,2]
[423078166,1779826239000,-167.12,0.00020536,2]
[423078150,1779826239000,-500.0,0.00020479,2]
[423078128,1779826239000,-158.0,0.0002,2]
[423078139,1779826239000,-94564.4158,0.000203,2]
[423078185,1779826239000,-328.0,0.00021,2]
[423078075,1779826239000,-500.0,0.00019925,2]
[423078078,1779826239000,-500.0,0.00019925,2]
[423078087,1779826239000,-24532.96893059,0.00019926,2]
[423078080,1779826239000,-500.0,0.00019925,2]
[423078092,1779826239000,-288111.01876754,0.00019926,2]
[423078083,1779826239000,-500.0,0.00019925,2]
[423078108,1779826239000,-157.0,0.0002,2]
[423078113,1779826239000,-197.0,0.0002,2]
[423078095,1779826239000,-8393.22571905,0.00019926,2]
[423078111,1779826239000,-198.0,0.0002,2]
[423078144,1779826239000,-1850.17206436,0.0002038,2]
[423078099,1779826239000,-928278.07613488,0.00019926,2]
[423078102,1779826239000,-167.12,0.00019932,2]
[423078115,1779826239000,-234.0,0.0002,2]
[423078117,1779826239000,-296.0,0.0002,2]
[423078119,1779826239000,-154.0,0.0002,2]
[423078121,1779826239000,-151.0,0.0002,2]
[423078124,1779826239000,-328.0,0.0002,2]
[423078126,1779826239000,-167.0,0.0002,2]
[423078130,1779826239000,-166.0,0.0002,2]
[423078132,1779826239000,-500.0,0.00020026,2]
[423078135,1779826239000,-18614.16,0.00020026,2]
[423078137,1779826239000,-500.0,0.000203,2]
[423078105,1779826239000,-838.0,0.0002,2]
[423078187,1779826239000,-158.0,0.00021,2]
[423078210,1779826239000,-500.0,0.00022107,2]
[423078190,1779826239000,-166.68,0.00021151,2]
[423078213,1779826239000,-167.12,0.00022348,2]
[423078220,1779826239000,-25789.16789797,0.000225,2]
[423078224,1779826239000,-623.11,0.00022691,2]
[423078225,1779826239000,-531.37574709,0.0002271,2]
[423078222,1779826239000,-3660.76031659,0.000226,2]
[423078226,1779826239000,-166.9,0.00022787,2]
[423078223,1779826239000,-756.97,0.00022691,2]
[423078221,1779826239000,-716.59423927,0.00022598,2]
[423078227,1779826239000,-167.12,0.00022952,2]
[423078230,1779826239000,-234.0,0.00023,2]
[423078228,1779826239000,-198.0,0.00023,2]
[423078231,1779826239000,-296.0,0.00023,2]
[423078232,1779826239000,-170.0,0.00023,2]
[423078234,1779826239000,-167.0,0.00023,2]
[423078233,1779826239000,-328.0,0.00023,2]
[423078236,1779826239000,-166.0,0.00023,2]
[423078237,1779826239000,-500.0,0.00023901,2]
[423078238,1779826239000,-500.0,0.00023901,2]
[423078240,1779826239000,-235.71562076,0.00023901,2]
[423078235,1779826239000,-158.0,0.00023,2]
[423078241,1779826239000,-500.0,0.00023901,2]
[423078239,1779826239000,-500.0,0.00023901,2]
[423078194,1779826239000,-167.12,0.00021744,2]
[423078214,1779826239000,-739.4,0.00022353,2]
[423078218,1779826239000,-500.0,0.00022499,2]
[423078229,1779826239000,-197.0,0.00023,2]
[423078212,1779826239000,-305.45,0.00022249,2]
[423078188,1779826239000,-166.0,0.00021,2]
[423078215,1779826239000,-2434.07361845,0.00022455,2]
[423078192,1779826239000,-191.08,0.00021562,2]
[423078191,1779826239000,-160.96,0.00021424,2]
[423078195,1779826239000,-259.34,0.00021753,2]
[423078193,1779826239000,-2000.0,0.00021588,2]
[423078197,1779826239000,-215.43,0.00021925,2]
[423078200,1779826239000,-234.0,0.00022,2]
[423078201,1779826239000,-296.0,0.00022,2]
[423078198,1779826239000,-198.0,0.00022,2]
[423078199,1779826239000,-197.0,0.00022,2]
[423078196,1779826239000,-5000.0,0.00021918,2]
[423078209,1779826239000,-500.0,0.00022107,2]
[423078205,1779826239000,-158.0,0.00022,2]
[423078208,1779826239000,-200.0,0.00022055,2]
[423078203,1779826239000,-328.0,0.00022,2]
[423078204,1779826239000,-167.0,0.00022,2]
[423078207,1779826239000,-2005.9555727,0.0002205,2]
[423078206,1779826239000,-166.0,0.00022,2]
[423078217,1779826239000,-500.0,0.00022499,2]
[423078219,1779826239000,-1134.25,0.00022499,2]
[423078216,1779826239000,-330.0,0.00022493,4]
[423078211,1779826239000,-500.0,0.00022107,2]
[423078202,1779826239000,-154.0,0.00022,2]
[423078287,1779826240000,-330.0,0.00026754,8]
[423078276,1779826240000,-174.0,0.00025,2]
[423078288,1779826240000,-215.43,0.00026797,2]
[423078293,1779826240000,-151.0,0.00027397,2]
[423078290,1779826240000,-518.14570859,0.00027199,2]
[423078280,1779826240000,-500.0,0.00026,2]
[423078286,1779826240000,-305.45,0.00026687,2]
[423078281,1779826240000,-162.07,0.00026241,2]
[423078277,1779826240000,-513.0,0.00025082,2]
[423078284,1779826240000,-739.4,0.00026296,2]
[423078279,1779826240000,-268.18,0.00025786,2]
[423078289,1779826240000,-513.0,0.00026976,4]
[423078282,1779826240000,-152.0,0.00026278,2]
[423078298,1779826240000,-186.93,0.00027596,30]
[423078299,1779826240000,-187.9,0.00027614,30]
[423078297,1779826240000,-838.0,0.000275,7]
[423078291,1779826240000,-151.0,0.00027397,2]
[423078296,1779826240000,-2323.29,0.00027397,10]
[423078294,1779826240000,-1500.0,0.00027397,2]
[423078295,1779826240000,-1218.34,0.00027397,10]
[423078300,1779826240000,-208.92835186,0.00027689,2]
[423078310,1779826240000,-514.44,0.00029,2]
[423078308,1779826240000,-514.43,0.00029,2]
[423078309,1779826240000,-514.43,0.00029,2]
[423078302,1779826240000,-160.0,0.00027689,2]
[423078301,1779826240000,-215.42269777,0.00027689,2]
[423078306,1779826240000,-2434.07361845,0.0002868,2]
[423078274,1779826240000,-185.0,0.00025,2]
[423078292,1779826240000,-151.0,0.00027397,2]
[423078278,1779826240000,-501.99997,0.00025082,2]
[423078249,1779826240000,-197.0,0.00024,2]
[423078275,1779826240000,-160.0,0.00025,2]
[423078307,1779826240000,-513.0,0.0002887,6]
[423078244,1779826240000,-500.0,0.00023901,2]
[423078243,1779826240000,-500.0,0.00023901,2]
[423078242,1779826240000,-500.0,0.00023901,2]
[423078256,1779826240000,-5530.0,0.000242,5]
[423078252,1779826240000,-328.0,0.00024,2]
[423078251,1779826240000,-296.0,0.00024,2]
[423078257,1779826240000,-739.4,0.00024324,2]
[423078245,1779826240000,-500.0,0.00023945,2]
[423078247,1779826240000,-198.0,0.00024,2]
[423078259,1779826240000,-2000.0,0.00024393,2]
[423078258,1779826240000,-215.43,0.00024361,2]
[423078250,1779826240000,-234.0,0.00024,2]
[423078285,1779826240000,-2434.07361845,0.00026605,2]
[423078254,1779826240000,-158.0,0.00024,2]
[423078255,1779826240000,-166.0,0.00024,2]
[423078260,1779826240000,-235.987458,0.000245,14]
[423078273,1779826240000,-342.0,0.00025,2]
[423078265,1779826240000,-2434.07361845,0.0002453,2]
[423078271,1779826240000,-242.0,0.00025,2]
[423078261,1779826240000,-235.987457,0.000245,14]
[423078263,1779826240000,-203.943734,0.000245,14]
[423078268,1779826240000,-235.987458,0.00024775,14]
[423078267,1779826240000,-203.943734,0.00024774,14]
[423078272,1779826240000,-306.83477829,0.00025,2]
[423078270,1779826240000,-204.0,0.00025,2]
[423078266,1779826240000,-1000.0,0.00024658,2]
[423078269,1779826240000,-200.0,0.00025,2]
[423078253,1779826240000,-167.0,0.00024,2]
[423078303,1779826240000,-150.0,0.00028081,30]
[423078324,1779826240000,-2848.26279911,0.000295,51]
[423078304,1779826240000,-720.62,0.00028082,7]
[423078341,1779826240000,-154.0,0.00029578,30]
[423078348,1779826240000,-3462.2344941,0.0002959,52]
[423078346,1779826240000,-166.0,0.00029578,30]
[423078349,1779826240000,-1000.0,0.000297,7]
[423078350,1779826240000,-1850.17206434,0.00029718,2]
[423078340,1779826240000,-296.0,0.00029578,30]
[423078345,1779826240000,-158.0,0.00029578,30]
[423078347,1779826240000,-157.0,0.00029578,30]
[423078352,1779826240000,-200.0,0.00030137,2]
[423078351,1779826240000,-720.62,0.00030094,7]
[423078362,1779826240000,-154.0,0.00030578,30]
[423078363,1779826240000,-151.0,0.00030578,30]
[423078353,1779826240000,-227.31,0.00030137,2]
[423078339,1779826240000,-234.0,0.00029578,30]
[423078355,1779826240000,-739.4,0.00030239,2]
[423078357,1779826240000,-157.0,0.00030578,30]
[423078361,1779826240000,-296.0,0.00030578,30]
[423078358,1779826240000,-198.0,0.00030578,30]
[423078356,1779826240000,-259.34,0.00030454,2]
[423078359,1779826240000,-197.0,0.00030578,30]
[423078360,1779826240000,-234.0,0.00030578,30]
[423078365,1779826240000,-167.0,0.00030578,30]
[423078366,1779826240000,-158.0,0.00030578,30]
[423078364,1779826240000,-328.0,0.00030578,30]
[423078369,1779826240000,-3133.0,0.000306,2]
[423078367,1779826240000,-166.0,0.00030578,30]
[423078371,1779826240000,-513.0,0.00030763,8]
[423078368,1779826240000,-157.0,0.00030578,30]
[423078354,1779826240000,-330.0,0.00030149,15]
[423078342,1779826240000,-151.0,0.00029578,30]
[423078305,1779826240000,-739.4,0.00028267,2]
[423078344,1779826240000,-167.0,0.00029578,30]
[423078343,1779826240000,-328.0,0.00029578,30]
[423078312,1779826240000,-150.0,0.00029,2]
[423078315,1779826240000,-500.0,0.00029041,2]
[423078311,1779826240000,-514.43,0.00029,2]
[423078319,1779826240000,-619.36058321,0.00029041,2]
[423078314,1779826240000,-720.62,0.00029,7]
[423078318,1779826240000,-500.0,0.00029041,2]
[423078322,1779826240000,-1286.99463516,0.000295,51]
[423078313,1779826240000,-500.0,0.00029,2]
[423078323,1779826240000,-2544.46775246,0.000295,51]
[423078316,1779826240000,-500.0,0.00029041,2]
[423078320,1779826240000,-215.43,0.00029233,120]
[423078321,1779826240000,-500.0,0.00029249,18]
[423078325,1779826240000,-3052.92003068,0.000295,51]
[423078317,1779826240000,-500.0,0.00029041,2]
[423078336,1779826240000,-157.0,0.00029578,30]
[423078370,1779826240000,-2434.07361845,0.00030755,2]
[423078331,1779826240000,-3501.88492196,0.000295,51]
[423078332,1779826240000,-3501.88492196,0.000295,51]
[423078328,1779826240000,-1599.85462058,0.000295,51]
[423078329,1779826240000,-3189.60615207,0.000295,51]
[423078327,1779826240000,-1599.85462058,0.000295,51]
[423078330,1779826240000,-3189.60615207,0.000295,51]
[423078338,1779826240000,-197.0,0.00029578,30]
[423078334,1779826240000,-3760.92509302,0.000295,51]
[423078337,1779826240000,-198.0,0.00029578,30]